bitfinex-derivatives/quotes_BTCF0:USTF0_20210409
["timestamp","ask_amount","ask_price","bid_price","bid_amount"]
[1617943371544,3.63581134,58092.0,58091.0,0.33145701]
[1617943371946,3.88164158,58092.0,58091.0,0.27]
[1617943372446,3.88164158,58092.0,58090.0,0.01]
[1617943372646,3.88164158,58092.0,58091.0,0.26]
[1617943372946,0.61016893,58091.0,58089.0,0.01]
[1617943373147,0.61016893,58091.0,58088.0,0.36719807]
[1617943373549,0.61016893,58091.0,58089.0,0.27]
[1617943374749,0.36425824,58090.0,58089.0,0.27]
[1617943375158,1.36425824,58090.0,58087.0,0.36719972]
[1617943375557,1.36425824,58090.0,58089.0,0.01]
[1617943375750,1.0,58090.0,58087.0,0.36719972]
[1617943376253,1.36412207,58090.0,58089.0,0.27]
[1617943376551,0.60994591,58089.0,58088.0,0.27]
[1617943376751,1.60998945,58090.0,58087.0,0.36719972]
[1617943376952,1.60998945,58090.0,58088.0,0.27]
[1617943377252,1.36415845,58090.0,58088.0,0.27]
[1617943378756,0.93854227,58089.0,58088.0,0.27]
[1617943378955,1.36415163,58089.0,58088.0,0.27]
[1617943380655,1.36415163,58089.0,58085.0,0.36705301]
[1617943381058,1.36415163,58089.0,58088.0,0.01]
[1617943381259,1.36415163,58089.0,58085.0,0.36705301]
[1617943381457,0.10725655,58086.0,58085.0,0.36705301]
[1617943381958,1.20631655,58086.0,58085.0,0.27]
[1617943382356,1.20631655,58086.0,58084.0,0.36706409]
[1617943382557,1.20631655,58086.0,58079.0,0.71863388]
[1617943382558,1.20631655,58086.0,58081.0,0.36650544]
[1617943382756,1.20631655,58086.0,58085.0,0.27]
[1617943382957,1.20631655,58086.0,58082.0,0.01]
[1617943383257,1.20631655,58086.0,58085.0,0.27]
[1617943383659,1.20631655,58086.0,58082.0,0.27]
[1617943383861,1.20631655,58086.0,58085.0,0.27]
[1617943384060,0.20631655,58086.0,58085.0,0.27]
[1617943384260,0.20631655,58086.0,58082.0,0.27]
[1617943384661,3.626,58083.0,58082.0,0.27]
[1617943385063,3.626,58083.0,58081.0,0.36650727]
[1617943385264,3.626,58083.0,58082.0,0.27]
[1617943385465,4.626,58083.0,58082.0,0.27]
[1617943385663,3.626,58083.0,58082.0,0.27]
[1617943386265,3.626,58083.0,58078.0,0.21225655]
[1617943386266,3.626,58083.0,58081.0,0.36633102]
[1617943386466,3.626,58083.0,58081.0,0.37633102]
[1617943386679,3.626,58083.0,58082.0,0.26]
[1617943386867,3.626,58083.0,58081.0,0.36633102]
[1617943387165,3.626,58083.0,58082.0,0.27]
[1617943387364,0.20631655,58086.0,58082.0,0.27]
[1617943387765,1.0,58083.0,58082.0,0.27]
[1617943389267,4.0376,58083.0,58082.0,0.27]
[1617943390369,4.0376,58083.0,58080.0,0.01]
[1617943390569,4.0376,58083.0,58079.0,0.36633349]
[1617943390772,4.0376,58083.0,58082.0,0.26]
[1617943390971,4.0376,58083.0,58080.0,0.27]
[1617943391172,3.0376,58083.0,58080.0,0.27]
[1617943391373,3.0376,58083.0,58082.0,0.27]
[1617943391577,3.0376,58083.0,58079.0,0.36633349]
[1617943391874,3.0376,58083.0,58082.0,0.27]
[1617943392375,3.0376,58083.0,58081.0,0.27]
[1617943392575,3.0376,58083.0,58082.0,0.26]
[1617943392775,3.0376,58083.0,58079.0,0.36633349]
[1617943393076,3.0376,58083.0,58082.0,0.27]
[1617943393276,4.0376,58083.0,58082.0,0.27]
[1617943393476,4.0376,58083.0,58080.0,0.01]
[1617943393676,4.0376,58083.0,58082.0,0.27]
[1617943394079,1.0,58081.0,58080.0,0.27]
[1617943394278,1.0,58081.0,58079.0,0.36633349]
[1617943394478,4.0376,58083.0,58079.0,0.36633349]
[1617943394678,1.0,58083.0,58080.0,0.27]
[1617943394880,1.0,58083.0,58080.0,2.9533]
[1617943395780,1.0,58083.0,58080.0,0.27]
[1617943395980,1.0,58083.0,58082.0,2.6688]
[1617943396297,0.10725655,58086.0,58082.0,2.6688]
[1617943396508,1.01017626,58088.0,58082.0,0.01]
[1617943396718,1.0,58089.0,58082.0,0.01]
[1617943396881,0.01018151,58090.0,58081.0,0.56613731]
[1617943396882,0.01018151,58090.0,58081.0,0.83613731]
[1617943397083,0.01018654,58093.0,58089.0,3.4709]
[1617943397485,0.36318547,58097.0,58089.0,3.4709]
[1617943397486,0.01019028,58095.0,58090.0,0.01]
[1617943397784,0.01019028,58095.0,58092.0,0.10725655]
[1617943397984,0.01019119,58096.0,58092.0,0.21978655]
[1617943399584,0.30285494,58097.0,58092.0,0.21978655]
[1617943399585,0.01019351,58097.0,58092.0,0.21978655]
[1617943400185,1.01019351,58097.0,58092.0,0.21978655]
[1617943405695,1.01019351,58097.0,58093.0,0.30532092]
[1617943406093,0.01019351,58097.0,58093.0,0.30532092]
[1617943406396,0.01019351,58097.0,58094.0,0.30531556]
[1617943406594,1.01020686,58098.0,58094.0,0.30531556]
[1617943408396,0.01021336,58097.0,58096.0,0.30550999]
[1617943410199,0.01021336,58097.0,58096.0,0.57550999]
[1617943410599,0.01021336,58097.0,58096.0,3.96390999]
[1617943410799,0.01021893,58100.0,58096.0,4.39195208]
[1617943411199,0.30363369,58101.0,58096.0,4.39195208]
[1617943411200,0.01022072,58101.0,58099.0,0.30548813]
[1617943411601,0.01022072,58101.0,58100.0,0.27]
[1617943411801,0.01022072,58101.0,58100.0,0.68274261]
[1617943412203,0.01022072,58101.0,58100.0,0.41274261]
[1617943412603,0.01022072,58101.0,58100.0,0.68274261]
[1617943413907,0.01022072,58101.0,58100.0,3.57254261]
[1617943415309,0.30387315,58103.0,58100.0,3.57254261]
[1617943415310,0.01022764,58102.0,58100.0,3.57254261]
[1617943415710,0.01022764,58102.0,58101.0,0.30547125]
[1617943417515,0.01023291,58103.0,58101.0,0.30547125]
[1617943418115,0.01023189,58102.0,58100.0,3.36368174]
[1617943418516,0.01023189,58102.0,58101.0,0.30552567]
[1617943419015,0.01023189,58102.0,58101.0,0.57552567]
[1617943419318,0.30441487,58102.0,58101.0,0.942679]
[1617943420317,0.66955412,58102.0,58101.0,0.942679]
[1617943420515,3.73575412,58102.0,58101.0,0.942679]
[1617943420917,3.73575412,58102.0,58101.0,0.57552567]
[1617943421318,3.98152231,58102.0,58101.0,0.57552567]
[1617943423922,0.91532231,58102.0,58101.0,0.57552567]
[1617943424121,1.01968231,58102.0,58101.0,0.57552567]
[1617943424523,0.77391412,58102.0,58101.0,4.20492567]
[1617943424923,1.01968684,58102.0,58101.0,4.20492567]
[1617943425125,2.01968684,58102.0,58101.0,4.20492567]
[1617943425324,1.01968684,58102.0,58101.0,4.20492567]
[1617943425524,2.01968684,58102.0,58101.0,4.20492567]
[1617943430330,1.01968684,58102.0,58101.0,3.8994]
[1617943430530,0.91532684,58102.0,58101.0,3.8994]
[1617943430829,0.91532684,58102.0,58101.0,0.27]
[1617943431729,1.91532684,58102.0,58101.0,0.27]
[1617943432932,2.3609158,58102.0,58101.0,0.27]
[1617943433330,5.5803158,58102.0,58101.0,0.27]
[1617943434132,5.94900541,58102.0,58101.0,0.27]
[1617943438442,5.94900541,58102.0,58100.0,0.10725655]
[1617943438936,1.72878448,58101.0,58100.0,0.10725655]
[1617943439536,6.12348448,58101.0,58100.0,0.10725655]
[1617943439937,6.23074103,58101.0,58100.0,0.10725655]
[1617943441940,6.23074103,58101.0,58096.0,0.30601186]
[1617943442440,0.66870338,58097.0,58096.0,0.30601186]
[1617943442944,0.66870338,58097.0,58095.0,0.30606384]
[1617943443543,0.66858803,58096.0,58095.0,0.30606384]
[1617943443742,1.66858803,58096.0,58095.0,0.30606384]
[1617943444045,1.91438768,58096.0,58095.0,0.30606384]
[1617943445144,1.91438768,58096.0,58094.0,0.41332002]
[1617943445648,0.91432759,58095.0,58094.0,0.41332002]
[1617943445846,1.11908414,58095.0,58094.0,0.41332002]
[1617943446145,0.87328611,58095.0,58094.0,0.41332002]
[1617943446647,1.11908269,58095.0,58094.0,0.41332002]
[1617943449251,1.20475655,58095.0,58094.0,0.10725655]
[1617943449653,1.87324511,58095.0,58094.0,0.41332182]
[1617943451888,5.55684511,58095.0,58094.0,0.41332182]
[1617943452269,6.37125356,58095.0,58094.0,0.10725655]
[1617943452555,6.37125356,58095.0,58093.0,0.30617252]
[1617943453056,1.36022898,58094.0,58093.0,0.30617252]
[1617943453557,1.36022898,58094.0,58092.0,0.3061954]
[1617943453858,1.11425993,58093.0,58092.0,0.3061954]
[1617943454759,5.16717621,58093.0,58092.0,0.3061954]
[1617943455259,6.22784912,58093.0,58092.0,0.3061954]
[1617943458763,6.22784912,58093.0,58092.0,0.36765163]
[1617943460665,6.36688912,58093.0,58092.0,0.36765163]
[1617943462467,6.36688912,58093.0,58092.0,0.3061954]
[1617943465872,6.22784912,58093.0,58092.0,0.3061954]
[1617943466172,5.85910297,58093.0,58092.0,0.3061954]
[1617943467975,5.41300697,58093.0,58092.0,0.67389093]
[1617943468975,5.85911128,58093.0,58092.0,0.3061954]
[1617943469879,5.85911128,58093.0,58092.0,0.67389069]
[1617943469880,5.41300697,58093.0,58092.0,0.67389069]
[1617943470879,5.85910684,58093.0,58092.0,0.3061954]
[1617943471279,5.41300697,58093.0,58092.0,0.67388811]
[1617943472982,5.85917297,58093.0,58092.0,0.3061954]
[1617943476995,5.85917297,58093.0,58092.0,0.67418267]
[1617943478890,5.85917297,58093.0,58092.0,0.3061954]
[1617943484199,5.85917297,58093.0,58092.0,0.67420706]
[1617943492412,4.85917297,58093.0,58092.0,0.67420706]
[1617943493016,5.85917297,58093.0,58092.0,0.67420706]
[1617943499325,5.85917297,58093.0,58092.0,1.12465886]
[1617943499526,5.85917297,58093.0,58092.0,1.23125886]
[1617943499826,5.85917297,58093.0,58092.0,0.78080706]
[1617943500728,5.85917297,58093.0,58092.0,0.67420706]
[1617943502228,4.85917297,58093.0,58092.0,0.67420706]
[1617943504732,5.85917297,58093.0,58092.0,0.67420706]
[1617943512853,2.36057297,58093.0,58092.0,0.67420706]
[1617943513645,2.36057297,58093.0,58092.0,1.12470597]
[1617943514043,5.06567297,58093.0,58092.0,0.67420706]
[1617943514545,4.43442705,58093.0,58092.0,0.67420706]
[1617943514745,4.53475705,58093.0,58092.0,0.67420706]
[1617943514945,6.04189398,58093.0,58092.0,0.67420706]
[1617943518751,6.14915053,58093.0,58092.0,0.67420706]
[1617943526661,2.9369136,58093.0,58092.0,0.67420706]
[1617943526860,1.8365836,58093.0,58092.0,0.67420706]
[1617943527062,1.46782952,58093.0,58092.0,0.67420706]
[1617943527460,1.46782952,58093.0,58092.0,1.12461011]
[1617943528967,1.36057297,58093.0,58092.0,1.12461011]
[1617943529363,1.36057297,58093.0,58092.0,4.14751011]
[1617943529364,1.11474221,58093.0,58092.0,4.14751011]
[1617943529862,1.11474221,58093.0,58092.0,4.30114863]
[1617943530274,0.66857621,58093.0,58092.0,4.30114863]
[1617943530662,0.66857621,58093.0,58092.0,1.27824863]
[1617943531264,3.28917621,58093.0,58092.0,1.12461011]
[1617943531667,3.73560826,58093.0,58092.0,1.18606738]
[1617943532065,4.35018996,58093.0,58092.0,1.12461011]
[1617943532865,3.98144094,58093.0,58092.0,1.12461011]
[1617943533366,3.53500889,58093.0,58092.0,1.12461011]
[1617943533767,3.98153983,58093.0,58092.0,1.12461011]
[1617943538769,4.98153983,58093.0,58092.0,1.12461011]
[1617943538969,5.08879638,58093.0,58092.0,1.12461011]
[1617943539271,5.08879638,58093.0,58092.0,0.67420706]
[1617943540869,2.46819638,58093.0,58092.0,0.67420706]
[1617943541570,2.46819638,58093.0,58092.0,3.33600706]
[1617943542372,2.46819638,58093.0,58092.0,3.39746528]
[1617943544973,2.46819638,58093.0,58092.0,0.73566528]
[1617943545374,5.79799638,58093.0,58092.0,0.73566528]
[1617943545574,5.79799638,58093.0,58092.0,0.67420706]
[1617943546074,6.16674823,58093.0,58092.0,0.67420706]
[1617943548176,6.16674823,58093.0,58092.0,0.73566542]
[1617943555979,5.16674823,58093.0,58092.0,0.73566542]
[1617943556180,1.83694823,58093.0,58092.0,0.84759542]
[1617943556380,1.83694823,58093.0,58092.0,4.98967135]
[1617943556882,1.36093983,58093.0,58092.0,5.18967135]
[1617943557080,1.36093983,58093.0,58092.0,5.45967135]
[1617943557283,1.11510715,58093.0,58092.0,5.45967135]
[1617943558181,0.66857621,58093.0,58092.0,5.97129168]
[1617943558682,0.30390748,58093.0,58092.0,5.97129168]
[1617943559582,0.30390748,58093.0,58092.0,2.27949168]
[1617943560383,0.30390748,58093.0,58092.0,3.77949168]
[1617943560584,0.30390748,58093.0,58092.0,4.77949168]
[1617943560985,0.01026029,58093.0,58092.0,4.87165337]
[1617943561422,0.01027456,58101.0,58092.0,9.08287031]
[1617943561823,0.01027884,58103.0,58100.0,1.63682382]
[1617943562039,0.01027884,58103.0,58101.0,1.7]
[1617943562187,0.01027884,58103.0,58101.0,1.97]
[1617943562386,0.01027884,58103.0,58102.0,1.0]
[1617943562586,0.0102379,58115.0,58102.0,4.3293419]
[1617943562787,0.0102379,58115.0,58102.0,4.5993419]
[1617943562988,0.44610881,58123.0,58114.0,0.10725655]
[1617943562989,0.01025289,58122.0,58114.0,0.10725655]
[1617943563187,0.01025289,58122.0,58115.0,5.113]
[1617943563388,0.01025943,58125.0,58115.0,5.383]
[1617943563605,0.01025943,58125.0,58115.0,6.383]
[1617943563788,0.01025943,58125.0,58124.0,0.36655481]
[1617943563989,0.36578425,58130.0,58124.0,0.87201715]
[1617943563990,0.01026544,58128.0,58124.0,0.87201715]
[1617943564289,0.01026649,58129.0,58124.0,0.87201715]
[1617943564488,0.01026649,58129.0,58124.0,2.37201715]
[1617943564689,0.01026649,58129.0,58128.0,0.30546174]
[1617943564888,0.01026649,58129.0,58128.0,0.70636829]
[1617943565188,0.01026649,58129.0,58128.0,0.50636829]
[1617943565402,3.17746649,58129.0,58128.0,0.50636829]
[1617943565810,3.4722063,58129.0,58128.0,0.50636829]
[1617943566007,3.4722063,58129.0,58128.0,0.41271829]
[1617943566292,3.4722063,58129.0,58128.0,0.10725655]
[1617943566293,4.08361443,58129.0,58128.0,0.10725655]
[1617943566968,5.19087098,58129.0,58128.0,0.10725655]
[1617943567339,5.63717827,58129.0,58128.0,0.10725655]
[1617943567700,4.63717827,58129.0,58114.0,0.30535103]
[1617943567945,5.78069827,58129.0,58114.0,0.30535103]
[1617943568093,5.78069827,58129.0,58113.0,0.30535826]
[1617943568094,0.30419936,58115.0,58113.0,0.30535826]
[1617943568294,0.44171936,58115.0,58113.0,0.30535826]
[1617943568693,0.44171936,58115.0,58112.0,0.57536485]
[1617943568694,1.3041581,58114.0,58112.0,0.57536485]
[1617943568994,1.10725655,58113.0,58112.0,0.30536485]
[1617943569393,1.10725655,58113.0,58112.0,0.57536485]
[1617943569596,1.41127402,58113.0,58112.0,0.27]
[1617943569996,1.41127402,58113.0,58110.0,0.27]
[1617943570195,0.41127402,58113.0,58110.0,0.27]
[1617943570398,0.41127402,58113.0,58112.0,0.27]
[1617943570399,0.11749056,58113.0,58112.0,0.27]
[1617943570595,0.11749056,58113.0,58110.0,0.30527194]
[1617943570831,0.11749056,58113.0,58111.0,0.26]
[1617943570997,0.11749056,58113.0,58112.0,0.27]
[1617943571197,0.10725655,58113.0,58112.0,0.27]
[1617943571396,0.10725655,58113.0,58111.0,0.27]
[1617943571598,0.10725655,58113.0,58112.0,0.01]
[1617943571798,0.41131162,58113.0,58112.0,0.01]
[1617943571999,0.41131162,58113.0,58109.0,0.26]
[1617943572199,0.77590928,58113.0,58112.0,0.27]
[1617943572599,0.77590928,58113.0,58109.0,0.27]
[1617943572800,0.77590928,58113.0,58107.0,0.10725655]
[1617943572801,0.30381353,58110.0,58107.0,0.10725655]
[1617943573200,0.30381353,58110.0,58108.0,0.27]
[1617943573621,0.30383479,58109.0,58108.0,0.27]
[1617943574416,0.01022867,58109.0,58108.0,0.27]
[1617943575303,0.01023,58110.0,58108.0,0.27]
[1617943576213,0.01022944,58109.0,58108.0,0.27]
[1617943580319,0.01023245,58111.0,58108.0,0.57526503]
[1617943581414,0.01023245,58111.0,58109.0,0.30533146]
[1617943581817,0.01023245,58111.0,58110.0,0.27]
[1617943583822,0.01023245,58111.0,58110.0,3.773]
[1617943584421,0.01023245,58111.0,58110.0,0.27]
[1617943584623,2.85983245,58111.0,58110.0,0.27]
[1617943585423,0.01023245,58111.0,58110.0,0.27]
[1617943585623,0.01023245,58111.0,58110.0,0.40841]
[1617943585825,0.01023245,58111.0,58110.0,3.97631]
[1617943586625,0.01024755,58112.0,58110.0,4.28163573]
[1617943588232,0.01024755,58112.0,58110.0,0.71373573]
[1617943588530,0.01024755,58112.0,58111.0,2.9537]
[1617943588926,0.01024755,58112.0,58111.0,3.2237]
[1617943589132,0.01024955,58114.0,58111.0,3.52895783]
[1617943589326,0.01024955,58114.0,58113.0,0.10725655]
[1617943589728,0.01024955,58114.0,58113.0,0.37725655]
[1617943589928,0.01025502,58117.0,58113.0,0.68251423]
[1617943590347,0.01025347,58116.0,58113.0,0.68251423]
[1617943590851,0.01025347,58116.0,58114.0,0.30525452]
[1617943591728,0.01025407,58117.0,58114.0,0.30525452]
[1617943592129,0.01025621,58118.0,58115.0,0.30524536]
[1617943593730,0.01025621,58118.0,58116.0,0.27]
[1617943594330,0.01025891,58119.0,58116.0,0.57524466]
[1617943594832,0.01025891,58119.0,58116.0,0.30524466]
[1617943595034,0.01025891,58119.0,58117.0,0.27]
[1617943595934,0.01026361,58122.0,58118.0,0.30522665]
[1617943596337,0.01026361,58122.0,58116.0,0.36627198]
[1617943596338,0.01026282,58121.0,58119.0,0.57522888]
[1617943596736,0.01026282,58121.0,58119.0,0.30522888]
[1617943597340,0.01026282,58121.0,58120.0,0.10725655]
[1617943597940,0.01026443,58122.0,58120.0,0.10725655]
[1617943598342,0.01026382,58121.0,58120.0,0.10725655]
[1617943599542,0.3051767,58121.0,58120.0,0.41270149]
[1617943600842,0.3051767,58121.0,58120.0,0.10725655]
[1617943604046,0.3051767,58121.0,58120.0,0.41272174]
[1617943604450,0.3051767,58121.0,58120.0,0.10725655]
[1617943605467,0.4051367,58121.0,58120.0,0.10725655]
[1617943605850,0.77112552,58121.0,58120.0,0.10725655]
[1617943606351,1.01688446,58121.0,58120.0,0.10725655]
[1617943607852,1.46423236,58121.0,58120.0,0.10725655]
[1617943609254,1.01688446,58121.0,58120.0,0.10725655]
[1617943610556,1.97608675,58121.0,58120.0,0.41381943]
[1617943611558,1.97608675,58121.0,58120.0,0.10725655]
[1617943612057,1.97608675,58121.0,58120.0,0.41382297]
[1617943612459,1.97608675,58121.0,58120.0,0.10725655]
[1617943613058,1.97608675,58121.0,58120.0,0.41382152]
[1617943613261,0.09996,58121.0,58120.0,0.10725655]
[1617943613559,1.63384164,58121.0,58120.0,0.41381956]
[1617943617066,1.98677209,58121.0,58120.0,0.41381956]
[1617943617465,2.98677209,58121.0,58120.0,0.41381956]
[1617943617867,1.98677209,58121.0,58120.0,0.41381956]
[1617943618667,1.98677209,58121.0,58120.0,0.10725655]
[1617943619567,2.98677209,58121.0,58120.0,0.10725655]
[1617943620669,2.98677209,58121.0,58118.0,0.30663688]
[1617943620870,1.98677209,58121.0,58118.0,0.30663688]
[1617943621071,1.6339256,58119.0,58118.0,0.30663688]
[1617943621471,1.6339256,58119.0,58118.0,0.57663688]
[1617943621671,1.74118215,58119.0,58118.0,0.68389343]
[1617943622371,1.98694896,58119.0,58118.0,0.37725655]
[1617943625072,2.98694896,58119.0,58118.0,0.10725655]
[1617943629177,1.98694896,58119.0,58118.0,0.10725655]
[1617943630577,2.35560057,58119.0,58118.0,0.10725655]
[1617943631980,3.35560057,58119.0,58118.0,0.10725655]
[1617943632179,2.35560057,58119.0,58118.0,0.10725655]
[1617943637286,2.35560057,58119.0,58118.0,0.41378044]
[1617943641190,2.35560057,58119.0,58118.0,0.10725655]
[1617943641389,2.49274057,58119.0,58118.0,0.10725655]
[1617943642490,2.35560057,58119.0,58118.0,0.10725655]
[1617943643289,2.35560057,58119.0,58118.0,0.41376705]
[1617943649201,1.98694896,58119.0,58118.0,0.10725655]
[1617943650601,1.98694896,58119.0,58118.0,0.4138019]
[1617943650802,5.21204896,58119.0,58118.0,0.4138019]
[1617943651002,5.21204896,58119.0,58118.0,0.10725655]
[1617943651404,5.58068081,58119.0,58118.0,0.10725655]
[1617943654608,5.58068081,58119.0,58118.0,0.41381134]
[1617943657314,5.58068081,58119.0,58118.0,0.41312061]
[1617943660816,5.58068081,58119.0,58118.0,0.10656582]
[1617943663018,5.58068081,58119.0,58118.0,0.41348291]
[1617943667524,6.58068081,58119.0,58118.0,0.41348291]
[1617943667824,5.58068081,58119.0,58118.0,0.41348291]
[1617943669427,5.58068081,58119.0,58118.0,0.78181618]
[1617943671933,5.68190081,58119.0,58118.0,0.78181618]
[1617943687851,6.22198089,58119.0,58118.0,0.78181618]
[1617943688653,5.68190081,58119.0,58118.0,0.78181618]
[1617943696770,5.58068081,58119.0,58118.0,0.78181618]
[1617943705987,6.58068081,58119.0,58118.0,0.67525036]
[1617943706688,7.12143837,58119.0,58118.0,0.30691709]
[1617943707087,7.32143837,58119.0,58118.0,0.30691709]
[1617943707310,7.32143837,58119.0,58115.0,0.30713019]
[1617943707311,7.89129251,58119.0,58115.0,0.30713019]
[1617943707487,1.5,58118.0,58115.0,0.30713019]
[1617943707688,7.89129251,58119.0,58115.0,0.30713019]
[1617943707889,2.19743395,58116.0,58112.0,0.30713439]
[1617943708192,1.62490558,58113.0,58108.0,0.30658613]
[1617943708489,3.6568,58109.0,58108.0,0.30658613]
[1617943708689,5.7740305,58109.0,58108.0,0.30658613]
[1617943709090,7.54245404,58109.0,58104.0,0.30660165]
[1617943709490,1.62350264,58105.0,58104.0,0.30660165]
[1617943709690,1.62350264,58105.0,58103.0,0.3066047]
[1617943709889,3.5999,58104.0,58103.0,0.3066047]
[1617943710090,4.70532,58104.0,58103.0,0.3066047]
[1617943710490,6.94317884,58104.0,58103.0,0.3066047]
[1617943710792,6.94317884,58104.0,58102.0,0.30660446]
[1617943710991,0.10725655,58103.0,58102.0,0.30660446]
[1617943711192,5.16606347,58103.0,58102.0,0.30660446]
[1617943711593,6.16606347,58103.0,58102.0,0.30660446]
[1617943714097,6.67325362,58103.0,58102.0,0.30660446]
[1617943714698,6.16606347,58103.0,58101.0,0.30654487]
[1617943715098,1.73001013,58102.0,58101.0,0.30654487]
[1617943716997,6.18621013,58102.0,58101.0,0.30654487]
[1617943717198,7.68621013,58102.0,58101.0,0.30654487]
[1617943717512,5.81752697,58102.0,58101.0,0.30654487]
[1617943717703,5.81752697,58102.0,58095.0,0.30658589]
[1617943717704,8.7302646,58102.0,58095.0,0.30658589]
[1617943717999,3.7740646,58102.0,58101.0,3.51]
[1617943718299,0.10725655,58103.0,58101.0,3.51]
[1617943718498,0.10725655,58103.0,58093.0,0.30658634]
[1617943718499,1.0,58096.0,58093.0,0.30658634]
[1617943718801,1.0,58096.0,58092.0,0.30658577]
[1617943718802,2.6066,58096.0,58092.0,0.30658577]
[1617943718999,0.10725655,58093.0,58092.0,0.30658577]
[1617943719201,1.10725655,58093.0,58091.0,3.5106]
[1617943719602,0.9124901,58092.0,58091.0,3.5106]
[1617943720002,3.1189,58090.0,58089.0,0.30567131]
[1617943720201,3.1189,58090.0,58088.0,0.30566817]
[1617943720501,1.0666801,58092.0,58088.0,0.30566817]
[1617943720702,1.0,58089.0,58088.0,0.30566817]
[1617943720903,1.0,58089.0,58088.0,3.70616817]
[1617943721104,1.66634093,58089.0,58088.0,3.4005]
[1617943721503,1.91217695,58089.0,58088.0,3.4005]
[1617943721903,1.30289142,58089.0,58088.0,3.4005]
[1617943722102,1.30289142,58089.0,58087.0,0.305683]
[1617943722504,1.43796142,58089.0,58087.0,0.305683]
[1617943722705,2.93824962,58088.0,58087.0,0.305683]
[1617943723606,2.93824962,58088.0,58086.0,0.30567923]
[1617943723607,3.93824962,58088.0,58086.0,0.30567923]
[1617943724007,0.3029054,58087.0,58086.0,0.30567923]
[1617943725443,0.3029054,58087.0,58086.0,0.77567923]
[1617943725809,0.10725655,58093.0,58092.0,3.689]
[1617943726009,0.10725655,58093.0,58092.0,4.03062]
[1617943726410,0.10725655,58093.0,58092.0,3.83062]
[1617943727012,0.10725655,58093.0,58092.0,4.56414278]
[1617943727210,0.10725655,58093.0,58092.0,4.67139933]
[1617943727417,0.10725655,58093.0,58092.0,0.98239933]
[1617943727711,3.31135655,58093.0,58092.0,0.98239933]
[1617943728011,4.31135655,58093.0,58092.0,0.84077933]
[1617943728445,4.31135655,58093.0,58092.0,0.47419234]
[1617943728914,4.32155569,58093.0,58092.0,0.10725655]
[1617943729312,4.6143734,58093.0,58092.0,0.10725655]
[1617943730214,3.9778095,58093.0,58092.0,0.10725655]
[1617943730413,4.9778095,58093.0,58092.0,0.10725655]
[1617943730613,4.6143734,58093.0,58092.0,0.10725655]
[1617943731212,4.7594534,58093.0,58092.0,0.10725655]
[1617943733016,5.12269301,58093.0,58092.0,0.10725655]
[1617943733214,4.45643655,58093.0,58092.0,0.10725655]
[1617943733415,5.12231095,58093.0,58092.0,0.10725655]
[1617943735615,5.12231095,58093.0,58092.0,0.08825655]
[1617943738922,4.97723095,58093.0,58092.0,0.08825655]
[1617943739223,4.6140359,58093.0,58092.0,0.08825655]
[1617943740522,1.4099359,58093.0,58092.0,0.08825655]
[1617943740722,0.4099359,58093.0,58092.0,3.47025655]
[1617943740923,0.10725655,58093.0,58092.0,3.47025655]
[1617943741424,0.10725655,58093.0,58092.0,3.77557409]
[1617943746935,0.11745712,58093.0,58092.0,3.77557409]
[1617943748937,0.10725655,58093.0,58092.0,3.77557409]
[1617943749336,0.10725655,58093.0,58092.0,0.39357409]
[1617943749539,1.41032228,58093.0,58092.0,0.39357409]
[1617943749737,4.16682228,58093.0,58092.0,0.39357409]
[1617943750438,4.16682228,58093.0,58092.0,0.08825655]
[1617943750938,4.16682228,58093.0,58090.0,0.30559895]
[1617943751641,3.86375655,58093.0,58091.0,0.27]
[1617943751853,2.86375655,58093.0,58091.0,0.27]
[1617943752063,1.30293964,58092.0,58091.0,0.27]
[1617943752239,1.45451964,58092.0,58091.0,0.27]
[1617943753842,1.81807188,58092.0,58091.0,0.27]
[1617943754241,1.81807188,58092.0,58089.0,0.30572641]
[1617943754542,1.81807188,58092.0,58091.0,0.01]
[1617943754742,1.51513224,58092.0,58091.0,0.01]
[1617943754943,1.0,58090.0,58089.0,0.30572641]
[1617943755144,1.51513224,58092.0,58091.0,0.27]
[1617943755344,1.8179519,58092.0,58091.0,0.27]
[1617943755544,1.8179519,58092.0,58090.0,0.27]
[1617943755844,1.8179519,58092.0,58091.0,0.26]
[1617943756043,1.8179519,58092.0,58090.0,0.27]
[1617943756244,1.8179519,58092.0,58089.0,0.30572641]
[1617943756444,1.8179519,58092.0,58088.0,0.30573167]
[1617943756644,1.8179519,58092.0,58090.0,0.27]
[1617943756844,0.3026694,58089.0,58088.0,0.30573167]
[1617943757246,0.66652936,58089.0,58088.0,0.74475095]
[1617943758346,1.11102817,58089.0,58088.0,0.31573167]
[1617943758545,2.11102817,58089.0,58088.0,0.31573167]
[1617943759145,2.35686312,58089.0,58088.0,0.31573167]
[1617943760148,1.91236431,58089.0,58088.0,0.31573167]
[1617943760849,1.91236431,58089.0,58088.0,0.37718905]
[1617943762849,2.3568998,58089.0,58088.0,0.31573167]
[1617943766056,2.3568998,58089.0,58088.0,0.01]
[1617943766455,2.3568998,58089.0,58087.0,0.26]
[1617943766656,3.0345,58088.0,58087.0,0.26]
[1617943767056,4.39100861,58088.0,58086.0,0.31630629]
[1617943767357,4.7597767,58088.0,58087.0,0.26]
[1617943767756,4.7597767,58088.0,58086.0,0.30630629]
[1617943768056,5.7597767,58088.0,58087.0,0.27]
[1617943768356,4.0345,58088.0,58087.0,0.57673946]
[1617943768758,5.14663643,58088.0,58087.0,0.57673946]
[1617943769057,5.14663643,58088.0,58087.0,0.63820089]
[1617943769458,5.25389298,58088.0,58087.0,0.63820089]
[1617943769861,4.95056467,58088.0,58087.0,0.63820089]
[1617943770159,2.21936267,58088.0,58087.0,0.63820089]
[1617943770462,2.21936267,58088.0,58087.0,4.57337252]
[1617943771360,1.77452831,58088.0,58087.0,4.57337252]
[1617943772260,1.77452831,58088.0,58087.0,5.02322739]
[1617943772762,1.77452831,58088.0,58087.0,4.57337252]
[1617943774464,2.21954917,58088.0,58087.0,1.00627252]
[1617943774870,2.21954917,58088.0,58087.0,0.63820089]
[1617943775869,2.21954917,58088.0,58087.0,0.57673946]
[1617943776970,2.21954917,58088.0,58087.0,0.94464967]
[1617943777870,2.21954917,58088.0,58087.0,3.48594967]
[1617943778281,1.77452831,58088.0,58087.0,3.48594967]
[1617943779571,1.77452831,58088.0,58087.0,3.59320622]
[1617943783275,1.47114256,58088.0,58087.0,3.59320622]
[1617943783676,1.77436844,58088.0,58087.0,3.59320622]
[1617943785878,0.77436844,58088.0,58087.0,3.59320622]
[1617943787279,1.02019385,58088.0,58087.0,3.59320622]
[1617943787579,0.77436844,58088.0,58087.0,3.59320622]
[1617943787983,1.02019383,58088.0,58087.0,3.59320622]